{"text_format":"1","workbook":"xlsx","n_sheets":2,"sheets":["登録シート（API連携なし)","登録シート（API連携あり)"],"not_rendered":{"charts":0,"images":0,"macros":1,"external_links":0,"defined_names":0,"comments":0,"pivot_tables":0},"unopened":[],"bounds":{"document_bytes":16777216,"sheet_cells":100000,"rows_first":2000,"rows_last":500,"rows_between":2000,"halvings":0,"cell_chars":16384,"cell_head_chars":4096},"cells_cut":0,"cells_raw":0,"read":"whole","date_system":"1900"}

{"sheet":"登録シート（API連携なし)","index":0,"n_rows":60,"n_cols":8,"rows_kept":60,"cut":false,"hidden":false,"merged":[]}
[]
[]
[]
[]
[null,"受講者ID","講座ID","状態","受講期限日FROM","受講期限日TO","質問機能利用","メール送信フラグ"]
[null,"受講者のID","受講権限を付与したい講座のID","0:仮登録 1:本登録 9:キャンセル\n※原則必ず「1」をいれる","受講期限日の開始日\n（YYYYMMDD）\n※設定しなければ当日","受講期限日の終了日\n（YYYYMMDD）\n※設定しなければマスタで設定されている期限日","質問機能を利用させる場合は1 そうでなければ0","受講権限付与の際に通知メールを対象受講者に送信するかのフラグ\n0:送信しない\n1:送信する"]
[null,"必須","必須","必須",null,null,null,"必須"]
[{"$f":"IF(B8<>\"\",1,0)","v":0}]
[{"$f":"IF(B9<>\"\",1,0)","v":0}]
[0]
[0]
[0]
[0]
[0]
[0]
[0]
[0]
[0]
[0]
[0]
[0]
[0]
[0]
[0]
[0]
[0]
[0]
[0]
[0]
[0]
[0]
[0]
[0]
[0]
[0]
[0]
[0]
[0]
[0]
[0]
[0]
[0]
[0]
[0]
[0]
[0]
[0]
[0]
[0]
[0]
[0]
[0]
[0]
[0]
[0]
[0]
[0]
[0]
[0]
[0]

{"sheet":"登録シート（API連携あり)","index":1,"n_rows":60,"n_cols":13,"rows_kept":60,"cut":false,"hidden":false,"merged":[]}
[]
[]
[]
[]
[null,"受講者ID","講座ID","状態","受講期限日FROM","受講期限日TO","質問機能利用","API連携項目１","API連携項目２","API連携項目３","API連携項目４","API連携項目５","メール送信フラグ"]
[null,"受講者のID","受講権限を付与したい講座のID","0:仮登録 1:本登録 9:キャンセル\n※原則必ず「1」をいれる","受講期限日の開始日\n（YYYYMMDD）\n※設定しなければ当日","受講期限日の終了日\n（YYYYMMDD）\n※設定しなければマスタで設定されている期限日","質問機能を利用させる場合は1 そうでなければ0",null,null,null,null,null,"受講権限付与の際に通知メールを対象受講者に送信するかのフラグ\n0:送信しない\n1:送信する"]
[null,"必須","必須","必須",null,null,null,null,null,null,null,null,"必須"]
[{"$f":"IF(B8<>\"\",1,0)","v":0}]
[{"$f":"IF(B9<>\"\",1,0)","v":0}]
[0]
[0]
[0]
[0]
[0]
[0]
[0]
[0]
[0]
[0]
[0]
[0]
[0]
[0]
[0]
[0]
[0]
[0]
[0]
[0]
[0]
[0]
[0]
[0]
[0]
[0]
[0]
[0]
[0]
[0]
[0]
[0]
[0]
[0]
[0]
[0]
[0]
[0]
[0]
[0]
[0]
[0]
[0]
[0]
[0]
[0]
[0]
[0]
[0]
[0]
[0]